Cogmind - Beta 13 @@@ ROGUE MODE // 2024.06.21 @ 07:54:29 Player: TinyBoulder Result: Destroyed by Striker with Compact Linear Accelerator Performance ------------- Evolutions (9) 4500 Regions Visited (24) 4800 Robots Destroyed (120) 600 Value Destroyed (4535) 4535 Prototype IDs (53) 1060 Alien Tech Used (0) 0 Bonus (1810) 1810 TOTAL SCORE: 17305 Bonus ------- High Alert Combat Kills 239 Follower Combat Kills 373 Entered Garrisons 200 Aligned with FarCom 300 Met Data Miner 300 Met Imprinter 300 Acquired ECA 300 Friendly Fire -202 Cogmind --------- Core Integrity 0/1600 Matter 280/300 Energy 98/100 System Corruption 3% Temperature Cool (0) Movement Core (50) Location -1/Command Parts ------- > --- POWER (2) -------- (None) > --- PROPULSION (8) --- (None) > --- UTILITY (11) ----- Advanced Cryofiber Web Machine Analyzer Experimental System Shield > --- WEAPON (4) ------- (None) > --- INVENTORY (5) ---- Advanced Cooling System Advanced Coolant Injector Medium Storage Unit Compact HERF Cannon Enhanced Nova Cannon Peak State ------------ > --- POWER ------------ Micro Antimatter Reactor Light Quantum Reactor > --- PROPULSION ------- Impulse Thruster Array Impulse Thruster Array Impulse Thruster Array Impulse Thruster Array > --- UTILITY ---------- Advanced Cryofiber Web Experimental Cooling System Medium Storage Unit Energy Well Machine Analyzer Improved Targeting Computer Experimental Target Analyzer Energy Filter Reaction Control System Experimental Hacking Suite Experimental System Shield > --- WEAPON ----------- Tesla Rifle Tesla Rifle Tesla Rifle Tesla Rifle > --- INVENTORY -------- Quantum Reactor Advanced Cooling System Advanced Coolant Injector ECM Suite Improved Cloaking Device Thermal Shield Tesla Rifle Tesla Rifle Compact HERF Cannon Enhanced Nova Cannon [Rating: 169] Favorites ----------- Power Improved Deuterium Engine Engine Improved Deuterium Engine Power Core Light Fission Core Reactor Light Quantum Reactor Propulsion Medium Treads Treads Medium Treads Leg Aluminum Leg Hover Unit Backup Propulsion I Flight Unit Impulse Thruster Array Utility Medium Storage Unit Device Improved Heat Sink Storage Medium Storage Unit Processor Experimental Target Analyzer Hackware Experimental System Shield Protection Light Armor Plating Weapon Minigun Energy Gun Tesla Rifle Energy Cannon Compact HERF Cannon Ballistic Gun Minigun Ballistic Cannon AWS/Autocannon Launcher Grenade Launcher Build | -11 -10 -10 -9 -9 -9 -8 -8 -8 -8 -7 -7 -7 -7 -6 -6 -6 -6 -5 -5 -4 -3 -2 -1 -1 ------- Run | Yrd Mat Min Mat Min Exi Min Mat Gar Mat Fac Low Low Zio Pro Fac Low Dat Pro Fac Fac Res Res Acc Com Slots Evolved 18 | . . . 2 . . . 2 . . 2 . . . . 2 . . . 2 2 2 2 2 . Power 1 | . . . . . . . . . . . . . . . . . . . 1 . . . . . Propulsion 6 | . . . . . . . 2 . . . . . . . . . . . . 2 1 1 . . Utility 9 | . . . 1 . . . . . . 1 . . . . 2 . . . 1 . 1 1 2 . Weapon 2 | . . . 1 . . . . . . 1 . . . . . . . . . . . . . . Parts Attached 155 | 6 10 5 13 2 4 1 7 4 2 3 1 1 5 6 8 3 3 7 12 1 19 11 11 10 Power 16 | 2 1 1 . . . . . 1 . 1 . . . . . 1 . 2 1 . 2 1 2 1 Engine 7 | 2 1 1 . . . . . 1 . 1 . . . . . . . 1 . . . . . . Core 4 | . . . . . . . . . . . . . . . . 1 . 1 1 . 1 . . . Reactor 5 | . . . . . . . . . . . . . . . . . . . . . 1 1 2 1 Propulsion 36 | 2 . 1 6 . . . 6 . . . . . 1 2 1 . . 1 3 1 5 1 . 6 Treads 18 | . . . 2 . . . 6 . . . . . 1 2 1 . . . . . . . . 6 Leg 8 | 2 . 1 4 . . . . . . . . . . . . . . 1 . . . . . . Wheel . | . . . . . . . . . . . . . . . . . . . . . . . . . Hover 4 | . . . . . . . . . . . . . . . . . . . 3 1 . . . . Flight 6 | . . . . . . . . . . . . . . . . . . . . . 5 1 . . Utility 57 | . 5 2 3 1 3 1 1 . 1 1 1 1 2 1 5 1 . 1 5 . 9 5 7 1 Device 39 | . 1 2 1 . 1 1 1 . 1 1 1 1 . . 4 1 . 1 5 . 7 3 6 1 Storage 3 | . . . . . 1 . . . . . . . . . . . . . . . 1 1 . . Processor 5 | . . . . . . . . . . . . . 2 1 . . . . . . 1 1 . . Hackware 2 | . . . . . . . . . . . . . . . 1 . . . . . . . 1 . Protection 8 | . 4 . 2 1 1 . . . . . . . . . . . . . . . . . . . Artifact . | . . . . . . . . . . . . . . . . . . . . . . . . . Weapon 46 | 2 4 1 4 1 1 . . 3 1 1 . . 2 3 2 1 3 3 3 . 3 4 2 2 Energy Gun 13 | . . . 1 . . . . 1 . . . . . . . . . . 3 . . 4 2 2 Energy Cannon 2 | . . . . . . . . . . . . . . . . . . . . . 2 . . . Ballistic Gun 19 | 2 4 . 2 . . . . 2 1 1 . . 1 2 1 . 2 1 . . . . . . Ballistic Cannon 1 | . . . . . 1 . . . . . . . . . . . . . . . . . . . Launcher 11 | . . 1 1 1 . . . . . . . . 1 1 1 1 1 2 . . 1 . . . Special Weapon . | . . . . . . . . . . . . . . . . . . . . . . . . . Impact Weapon . | . . . . . . . . . . . . . . . . . . . . . . . . . Slashing Weapon . | . . . . . . . . . . . . . . . . . . . . . . . . . Piercing Weapon . | . . . . . . . . . . . . . . . . . . . . . . . . . Special Melee Weapon . | . . . . . . . . . . . . . . . . . . . . . . . . . Unidentified Prototypes 9 | . . 1 1 . . . . . . . . . 2 . 1 . . . . . 1 . 3 . Parts Lost 64 | . 1 2 . . . . 1 1 . . . 1 . 6 1 5 . 9 2 4 6 . 9 16 Power 7 | . . . . . . . . 1 . . . . . . . 1 . 1 . 1 1 . 1 1 Propulsion 19 | . . 1 . . . . . . . . . . . 3 . 2 . 3 1 1 . . . 8 Utility 18 | . 1 1 . . . . 1 . . . . 1 . 1 . 1 . 1 . 1 3 . 3 4 Weapon 20 | . . . . . . . . . . . . . . 2 1 1 . 4 1 1 2 . 5 3 Highest Loss Streak 9 | . 1 1 . . . . 1 1 . . . 1 . 3 1 4 . 3 2 4 4 . 6 9 To Critical Strikes 4 | . . . . . . . . . . . . . . 2 . 1 . 1 . . . . . . Average Slot Usage (%) 86 | . 91 98 97 100 84 77 68 82 100 92 100 99 99 94 91 81 60 67 70 86 76 81 80 65 Engine 7 | . 14 14 11 11 11 11 9 9 9 7 7 7 7 7 6 1 . . 6 5 4 4 1 . Treads 20 | . . . 5 22 22 22 25 36 36 30 30 30 30 26 20 17 13 4 . . . . . 2 Leg 2 | . 28 27 16 . . . . . . . . . . . . . . 3 . . . . . . Flight 1 | . . . . . . . . . . . . . . . . . . . . . 15 17 16 13 Device 15 | . 7 12 21 16 11 11 10 18 18 22 23 22 21 11 13 12 13 11 11 19 18 14 16 7 Storage 6 | . . . . . 1 11 9 9 9 7 7 7 7 7 6 6 6 5 . . 3 6 8 7 Processor 3 | . . . . . . . . . . . . . 1 9 13 13 13 13 11 10 6 12 12 11 Hackware 1 | . . . . . . . . . . . . . . . 6 6 6 6 5 5 4 4 5 7 Protection 3 | . 12 14 11 16 20 11 4 . . . . . . . . . . . . . . . . . Energy Gun 2 | . . . 10 11 3 . . . 5 . . . . . . . . . 13 20 12 16 15 9 Ballistic Gun 14 | . 28 17 20 14 3 . . 1 21 23 30 30 29 28 24 13 . 13 . . . . . . Ballistic Cannon 2 | . . . . . 6 11 9 8 . . . . . . . . . . . . . . . . Naked Turns . | . . . . . . . . . . . . . . . . . . . . . . . . . Heaviest Build 83 | 7 15 15 23 25 83 79 79 77 26 37 37 38 38 41 39 39 39 43 23 23 45 63 64 56 Greatest Support 195 | 20 20 20 40 40 40 40 112 112 112 112 112 112 112 104 88 88 40 40 24 27 54 64 64 195 Greatest Overweight (x) 2 | . . 1 1 . 2 1 1 . . . . . . . . . . 1 2 . 1 . . . Average Overweight (x) . | . . . . . . 1 . . . . . . . . . . . . . . . . . . Largest Inventory Capacity 10 | 5 5 5 5 5 10 10 10 10 10 10 10 10 10 10 10 10 10 10 5 5 10 10 10 10 Average Capacity 9 | 5 5 5 5 5 5 10 10 10 10 10 10 10 10 10 10 10 10 9 5 5 9 10 10 9 Most Carried 10 | 2 5 5 5 5 6 6 10 10 10 10 10 10 10 10 9 9 9 6 5 5 7 10 10 10 Average Carried 7 | . 4 4 4 5 5 6 9 9 9 9 9 9 9 8 7 6 8 5 4 4 4 8 9 9 Final Capacity 10 | 5 5 5 5 5 10 10 10 10 10 10 10 10 10 10 10 10 10 5 5 5 10 10 10 5 Final Carried 10 | 2 5 5 5 5 6 6 10 10 10 10 10 10 10 7 9 6 6 5 4 5 4 9 10 5 Class Distribution -------------------- 30% | Gunner 17% | Skirmisher 12% | Mutant 12% | Scavenger-Skirmisher 11% | Scavenger-Gunner 8% | Scavenger-Tank Dominant Class ---------------- Mutant | -10/Materials Mutant | -10/Mines Scavenger-Tank | -9/Materials Scavenger-Tank | -9/Mines Scavenger-Tank | -9/Exiles Scavenger-Skirmisher | -8/Mines Scavenger-Skirmisher | -8/Materials Skirmisher | -8/Garrison Skirmisher | -8/Materials Skirmisher | -7/Factory Gunner | -7/Lower Caves Gunner | -7/Lower Caves Gunner | -7/Zion Scavenger-Gunner | -6/Proximity Caves Scavenger-Gunner | -6/Factory Scavenger-Gunner | -6/Lower Caves Mutant | -6/Data Miner Mutant | -5/Proximity Caves Mutant | -5/Factory Gunner | -4/Factory Gunner | -3/Research Gunner | -2/Research Gunner | -1/Access Hacker-Gunner | -1/Command Resources | -11 -10 -10 -9 -9 -9 -8 -8 -8 -8 -7 -7 -7 -7 -6 -6 -6 -6 -5 -5 -4 -3 -2 -1 -1 ----------- Run | Yrd Mat Min Mat Min Exi Min Mat Gar Mat Fac Low Low Zio Pro Fac Low Dat Pro Fac Fac Res Res Acc Com Matter Collected 3349 | 262 331 137 430 . . 200 30 151 36 42 42 162 50 264 138 144 . 415 96 14 150 47 208 . Remotely 604 | . . . . . . . . . . . 10 162 30 . 138 93 . 171 . . . . . . Salvage Created 4281 | 50 387 135 406 . . 272 54 648 28 . 75 353 . 197 127 90 . 211 . 118 158 139 833 . Parts 232 | 1 29 19 26 . . 14 7 40 8 . 2 15 . 12 5 6 . 4 . 6 9 4 25 . Haulers Intercepted . | . . . . . . . . . . . . . . . . . . . . . . . . . Recyclers Shooed 2 | . . . 2 . . . . . . . . . . . . . . . . . . . . . Parts Field Recycled . | . . . . . . . . . . . . . . . . . . . . . . . . . Retrieved Matter . | . . . . . . . . . . . . . . . . . . . . . . . . . Parts Self-Destructed 41 | . . . . . . . . . . . 2 15 2 10 . 5 . 7 . . . . . . Prevented . | . . . . . . . . . . . . . . . . . . . . . . . . . Kills | -11 -10 -10 -9 -9 -9 -8 -8 -8 -8 -7 -7 -7 -7 -6 -6 -6 -6 -5 -5 -4 -3 -2 -1 -1 ------- Run | Yrd Mat Min Mat Min Exi Min Mat Gar Mat Fac Low Low Zio Pro Fac Low Dat Pro Fac Fac Res Res Acc Com Combat Hostiles Destroyed 102 | 1 10 11 6 . . 12 1 26 1 . 3 6 . 4 2 3 . 5 . . 4 1 6 . Guns 46 | 1 10 3 6 . . . . 3 1 . 3 6 . 3 2 1 . 3 . . 3 . 1 . Cannons 36 | . . . . . . 12 1 23 . . . . . . . . . . . . . . . . AOE 16 | . . 8 . . . . . . . . . . . 1 . 2 . 2 . . 1 . 2 . Classes Destroyed 12 | 1 2 . 2 . . 1 1 2 1 . . . . 1 . 1 . . . . . . . . Worker 2 | . . . . . . . . . . . . . . . . . . . . 1 1 . . . Builder 2 | . . . . . . . . . 1 . . . . . . . . . . . . . 1 . Recycler 2 | . . . 1 . . . . . . . . . . . . . . . . 1 . . . . Operator 4 | . . . . . . . 1 . . . . . . . . . . . . . . . 3 . Watcher 8 | . 1 . 1 . . . 1 . . . . . . . . . . . . . . 1 4 . Swarmer 34 | . 3 9 . . . 3 . 9 1 . 3 . . . . 2 . . . . 4 . . . Grunt 44 | 1 7 2 3 . . 8 . 11 . . . 5 . . 1 . . 1 . . . 1 4 . Brawler 1 | . . . . . . . . 1 . . . . . . . . . . . . . . . . Duelist 2 | . . . . . . 1 . 1 . . . . . . . . . . . . . . . . Sentry 10 | . . . 3 . . . 1 3 . . . 1 . . 1 . . 1 . . . . . . Hunter 9 | . . . . . . . . . . . . . . 4 . 1 . 2 . . . . 2 . Programmer 2 | . . . . . . . . 1 . . . . . . . . . 1 . . . . . . Decomposer 1 | . . . . . . . . . . . . . . . . 1 . . . . . . . . Best Kill Streak 10 | 1 4 6 3 . . 3 1 10 1 . 3 4 . 2 1 2 . 2 . 2 3 1 4 . Combat Bots Only 10 | 1 4 6 3 . . 3 1 10 1 . 3 4 . 2 1 2 . 2 . . 3 1 4 . Max Kills in Single Turn 3 | 1 1 3 1 . . 1 1 1 1 . 1 1 . 1 1 2 . 1 . 1 2 1 2 . Gunslinging . | . . . . . . . . . . . . . . . . . . . . . . . . . Exploded 3 | . . 3 . . . . . . . . . . . 1 . 2 . 1 . . 1 . 2 . Melee . | . . . . . . . . . . . . . . . . . . . . . . . . . Uniques/NPCs Destroyed . | . . . . . . . . . . . . . . . . . . . . . . . . . Combat | -11 -10 -10 -9 -9 -9 -8 -8 -8 -8 -7 -7 -7 -7 -6 -6 -6 -6 -5 -5 -4 -3 -2 -1 -1 -------- Run | Yrd Mat Min Mat Min Exi Min Mat Gar Mat Fac Low Low Zio Pro Fac Low Dat Pro Fac Fac Res Res Acc Com Hostile Shots Fired 859 | 1 36 32 26 . . 20 2 52 2 18 14 44 . 60 21 39 . 94 2 6 56 2 91 241 Missed 324 | . 11 8 7 . . 2 . 15 1 7 5 17 . 21 14 8 . 24 . 1 26 1 51 105 Damage Taken 10818 | 12 282 335 267 . . 259 30 527 7 61 123 273 . 659 140 570 . 1502 40 356 639 20 1376 3340 Core 2894 | 12 11 38 29 . . 31 15 . . 5 . 43 . 49 16 73 . 753 . 73 136 . 385 1225 Absorbed by Shields 42 | . . . . . . . . . . . . . . . . . . 23 . . 8 . . 11 Ignored by Resistances 39 | . . . . . . . . . . . . . . . . . . . . . 39 . . . Regen/Repaired (Parts) 70 | . . . 70 . . . . . . . . . . . . . . . . . . . . . Core Remaining (%) 82 | 95 . 75 . . . 85 . . 97 . . . . 86 . . . . 100 93 89 100 . . Volleys Fired 215 | 1 34 19 20 . . . . 8 2 2 4 12 . 20 7 15 . 30 . 4 14 2 20 1 Largest 4 | 2 2 2 3 . . . . 3 3 3 4 4 . 4 4 3 . 4 . 4 3 4 4 3 Hottest 260 | 40 46 46 102 . . . . 115 115 73 96 96 . 96 99 71 . 120 . 171 94 260 260 195 Shots Fired 640 | 2 68 25 60 . . 28 5 68 6 6 16 48 . 63 20 33 . 62 . 7 38 8 74 3 Gun 536 | 2 68 16 60 . . . . 21 6 6 16 48 . 62 19 31 . 53 . 7 36 8 74 3 Cannon 81 | . . . . . . 28 5 47 . . . . . . . . . . . . 1 . . . Launcher 23 | . . 9 . . . . . . . . . . . 1 1 2 . 9 . . 1 . . . Special . | . . . . . . . . . . . . . . . . . . . . . . . . . Kinetic 461 | 2 68 16 40 . . 28 5 63 4 6 16 48 . 62 19 31 . 53 . . . . . . Thermal 70 | . . . 20 . . . . 5 2 . . . . . . . . . . 7 36 . . . Explosive 22 | . . 9 . . . . . . . . . . . 1 1 2 . 9 . . . . . . Electromagnetic 87 | . . . . . . . . . . . . . . . . . . . . . 2 8 74 3 Robot Hit Streak 21 | 1 5 5 9 . . 13 7 21 2 2 5 10 . 6 9 10 . 10 . 14 15 6 6 . Robot Miss Streak 5 | . 5 3 3 . . 2 . 3 1 1 3 5 . 3 1 3 . 2 . . 4 3 3 3 Penetration Max . | . . . . . . . . . . . . . . . . . . . . . . . . . Secondary Targets 4 | . . . . . . . . 1 . . 1 1 . 1 . . . . . . . . . . Max Gunslinging Chain 1 | . . . . . . . . 1 . . 1 1 . 1 . . . . . . . . . . Autonomous 81 | . . . . . . 28 5 48 . . . . . . . . . . . . . . . . Shots Hit Robots 417 | 1 34 12 43 . . 23 5 55 2 4 8 31 . 36 17 24 . 43 . 7 23 5 44 . Core Hits 187 | 1 16 12 13 . . 10 3 26 2 2 5 14 . 11 7 8 . 19 . 4 14 2 18 . Critical Kills 3 | 1 1 . . . . . . . . . . . . 1 . . . . . . . . . . Critical Parts Destroyed 7 | . . . . . . . . . . . . . . 1 . 1 . 5 . . . . . . Critical Strikes 25 | 1 1 . 2 . . 2 . 4 . . . . . 2 . 1 . 5 . . . 1 6 . Burn 2 | . . . 2 . . . . . . . . . . . . . . . . . . . . . Destroy 10 | 1 1 . . . . . . . . . . . . 2 . 1 . 5 . . . . . . Blast 6 | . . . . . . 2 . 4 . . . . . . . . . . . . . . . . Corrupt 7 | . . . . . . . . . . . . . . . . . . . . . . 1 6 . Melee Attacks . | . . . . . . . . . . . . . . . . . . . . . . . . . Impact . | . . . . . . . . . . . . . . . . . . . . . . . . . Slashing . | . . . . . . . . . . . . . . . . . . . . . . . . . Piercing . | . . . . . . . . . . . . . . . . . . . . . . . . . Sneak Attacks . | . . . . . . . . . . . . . . . . . . . . . . . . . Combat Hostiles . | . . . . . . . . . . . . . . . . . . . . . . . . . Follow-up Attacks . | . . . . . . . . . . . . . . . . . . . . . . . . . Damage Inflicted 13670 | 9 517 752 706 . . 1903 330 3321 32 65 123 528 . 547 262 426 . 1487 . 125 439 179 1919 . Guns 6020 | 9 517 139 706 . . . . 358 32 65 123 528 . 464 262 249 . 672 . 125 246 179 1346 . Cannons 5268 | . . . . . . 1903 330 2963 . . . . . . . . . . . . 72 . . . Explosions 2382 | . . 613 . . . . . . . . . . . 83 . 177 . 815 . . 121 . 573 . Melee . | . . . . . . . . . . . . . . . . . . . . . . . . . Ramming . | . . . . . . . . . . . . . . . . . . . . . . . . . Kinetic 8952 | 9 517 139 428 . . 1903 330 3244 19 65 123 528 . 464 262 249 . 672 . . . . . . Thermal 1312 | . . . 278 . . . . 77 13 . . . . . . . . . . 125 246 . 573 . Explosive 1688 | . . 613 . . . . . . . . . . . 83 . 177 . 815 . . . . . . Electromagnetic 1718 | . . . . . . . . . . . . . . . . . . . . . 193 179 1346 . Impact . | . . . . . . . . . . . . . . . . . . . . . . . . . Slashing . | . . . . . . . . . . . . . . . . . . . . . . . . . Piercing . | . . . . . . . . . . . . . . . . . . . . . . . . . Highest Corruption 6 | . . . 2 2 2 2 . . . . . . . . 6 6 6 6 . . . . 2 3 Average Corruption 3 | . . . 1 2 2 2 . . . . . . . . 2 6 6 6 . . . . 1 2 Corruption Purged . | . . . . . . . . . . . . . . . . . . . . . . . . . Corruption Blocked . | . . . . . . . . . . . . . . . . . . . . . . . . . Effects 87 | . . . 2 2 11 24 . . . . . . . . 10 8 7 17 . . . . . 6 Message Errors 25 | . . . 1 1 3 9 . . . . . . . . 3 1 . 5 . . . . . 2 Matter Fused 16 | . . . . . 4 6 . . . . . . . . 1 3 . 2 . . . . . . Heat Flow Errors 17 | . . . 1 1 1 4 . . . . . . . . 4 . 3 2 . . . . . 1 Energy Discharges 9 | . . . . . 2 . . . . . . . . . . 2 2 1 . . . . . 2 Parts Rejected 1 | . . . . . . 1 . . . . . . . . . . . . . . . . . . Parts Fused 1 | . . . . . . . . . . . . . . . . . . 1 . . . . . . Data Loss (minor) 10 | . . . . . 1 2 . . . . . . . . 2 1 2 2 . . . . . . Data Loss (major) 3 | . . . . . . 2 . . . . . . . . . . . . . . . . . 1 Misfires 4 | . . . . . . . . . . . . . . . . 1 . 3 . . . . . . Weapon Failures 1 | . . . . . . . . . . . . . . . . . . 1 . . . . . . Overload Shots . | . . . . . . . . . . . . . . . . . . . . . . . . . Overflow Damage 900 | . . 31 . . . 162 36 430 . . . . . . . . . 4 . . 15 . 222 . Projectiles 630 | . . . . . . 162 36 430 . . . . . . . . . . . . 2 . . . Explosions 270 | . . 31 . . . . . . . . . . . . . . . 4 . . 13 . 222 . Melee . | . . . . . . . . . . . . . . . . . . . . . . . . . Knockbacks 23 | . . . . . . 13 1 9 . . . . . . . . . . . . . . . . Impact . | . . . . . . . . . . . . . . . . . . . . . . . . . Kinetic 21 | . . . . . . 12 1 8 . . . . . . . . . . . . . . . . Secondary 2 | . . . . . . 1 . 1 . . . . . . . . . . . . . . . . Self-Inflicted Damage 361 | . . 97 . . . . . . . . . . . . . . . 62 . . 38 . 164 . Shots 11 | . . 3 . . . . . . . . . . . . . . . 1 . . 4 . 3 . Rammed . | . . . . . . . . . . . . . . . . . . . . . . . . . Targets Rammed . | . . . . . . . . . . . . . . . . . . . . . . . . . Kicked . | . . . . . . . . . . . . . . . . . . . . . . . . . Crushed . | . . . . . . . . . . . . . . . . . . . . . . . . . Highest Temperature 269 | . 49 78 242 142 175 222 . 86 34 . 20 171 . 226 269 20 247 197 . 21 . 114 215 . Average Temperature 59 | . 20 37 69 81 100 84 . 33 25 . 15 71 . 61 95 10 120 49 . 15 . 61 93 . Received Heat Transfer 1177 | 6 111 57 126 . . 117 9 216 . . . 99 . . 24 . . 328 . . 30 9 36 9 Effects 1 | . . . . . . . . . . . . . . . 1 . . . . . . . . . Energy Bleed 1 | . . . . . . . . . . . . . . . 1 . . . . . . . . . Siege Activations . | . . . . . . . . . . . . . . . . . . . . . . . . . Robots Corrupted 8 | . . . . . . . . . . . . . . . . . . . . . . 1 7 . Combat Hostiles 4 | . . . . . . . . . . . . . . . . . . . . . . 1 3 . Parts Fried 23 | . . . . . . . . . . . . . . . . . . . . . . 3 20 . Impact Corruptions . | . . . . . . . . . . . . . . . . . . . . . . . . . Robots Melted . | . . . . . . . . . . . . . . . . . . . . . . . . . Combat Hostiles . | . . . . . . . . . . . . . . . . . . . . . . . . . Parts Melted 6 | . . . . . . . . . . . . . . . . . . . . . 6 . . . Heat Transferred 2472 | . . . 740 . . . . 185 37 . . . . . . . . . . 259 851 . 400 . Parts Sabotaged . | . . . . . . . . . . . . . . . . . . . . . . . . . Parts Stolen . | . . . . . . . . . . . . . . . . . . . . . . . . . Parts Stripped . | . . . . . . . . . . . . . . . . . . . . . . . . . Power Chain Reactions 4 | . . . . . . . . . . . . . . . . . . . . . . . 4 . Alert | -11 -10 -10 -9 -9 -9 -8 -8 -8 -8 -7 -7 -7 -7 -6 -6 -6 -6 -5 -5 -4 -3 -2 -1 -1 ------- Run | Yrd Mat Min Mat Min Exi Min Mat Gar Mat Fac Low Low Zio Pro Fac Low Dat Pro Fac Fac Res Res Acc Com Peak Influence 818 | 20 210 385 432 96 . 282 62 818 606 345 . . . . 80 . . . 57 89 350 190 437 265 Initial 398 | . 13 81 150 96 . . 7 7 398 198 . . . . . . . . 57 11 30 97 113 51 Average 178 | 2 76 259 273 96 . 68 7 390 456 242 . . . . 13 . . . 42 52 121 151 257 118 Maximum Alert Level 3 | . 1 1 2 . . 1 . 3 2 1 . . . . . . . . . . 1 . 2 1 Low Security (%) 64 | 100 86 24 19 100 . 97 100 10 . 52 . . . . 100 . . . 100 100 85 100 50 77 Level 1 26 | . 13 75 70 . . 2 . 61 39 47 . . . . . . . . . . 14 . 38 22 Level 2 5 | . . . 10 . . . . 7 60 . . . . . . . . . . . . . 10 . Level 3 3 | . . . . . . . . 19 . . . . . . . . . . . . . . . . Level 4 . | . . . . . . . . . . . . . . . . . . . . . . . . . Level 5 . | . . . . . . . . . . . . . . . . . . . . . . . . . High Security . | . . . . . . . . . . . . . . . . . . . . . . . . . Max Security . | . . . . . . . . . . . . . . . . . . . . . . . . . Squads Dispatched 19 | . 4 . 1 . . 1 . . 1 . . . . . 1 . . 1 1 1 3 . 2 3 Investigation 8 | . 2 . . . . 1 . . . . . . . . . . . . . 1 2 . . 2 Extermination 3 | . . . . . . . . . . . . . . . . . . . 1 . . . 1 1 Reinforcement 7 | . 2 . 1 . . . . . 1 . . . . . 1 . . . . . 1 . 1 . Assault 1 | . . . . . . . . . . . . . . . . . . 1 . . . . . . Garrison . | . . . . . . . . . . . . . . . . . . . . . . . . . Intercept . | . . . . . . . . . . . . . . . . . . . . . . . . . Searches Triggered 1 | . . . . . . . . . . . . . . . . . . . . . . . 1 . Construction Impeded 1 | . . . . . . . . . . . . . . . . . . . . . . . 1 . Haulers Reinforced . | . . . . . . . . . . . . . . . . . . . . . . . . . Active Scanning Responses . | . . . . . . . . . . . . . . . . . . . . . . . . . Cargo Convoy Interrupts . | . . . . . . . . . . . . . . . . . . . . . . . . . Stealth | -11 -10 -10 -9 -9 -9 -8 -8 -8 -8 -7 -7 -7 -7 -6 -6 -6 -6 -5 -5 -4 -3 -2 -1 -1 --------- Run | Yrd Mat Min Mat Min Exi Min Mat Gar Mat Fac Low Low Zio Pro Fac Low Dat Pro Fac Fac Res Res Acc Com Distress Signals 8 | . . . 2 . . . . . 2 . . . . . . . . . . 1 1 . 1 1 Communications Jammed . | . . . . . . . . . . . . . . . . . . . . . . . . . Distress Signals . | . . . . . . . . . . . . . . . . . . . . . . . . . Times Spotted 231 | 1 19 9 13 . . 16 2 25 4 1 4 7 . 4 5 4 . 22 1 3 19 2 29 41 Peak Tracking Total 22 | 1 3 3 3 . . 3 1 4 3 1 3 5 . 2 2 3 . 13 1 5 13 1 15 22 Tactical Retreats 23 | . 2 . . . . 4 . 1 1 . 1 1 . . 1 1 . 1 . 2 3 . . 5 Traps | -11 -10 -10 -9 -9 -9 -8 -8 -8 -8 -7 -7 -7 -7 -6 -6 -6 -6 -5 -5 -4 -3 -2 -1 -1 ------- Run | Yrd Mat Min Mat Min Exi Min Mat Gar Mat Fac Low Low Zio Pro Fac Low Dat Pro Fac Fac Res Res Acc Com Traps Triggered 15 | . 2 . 2 . . . . . . . . . . . 2 . . . 1 . 3 . 1 4 Indirectly . | . . . . . . . . . . . . . . . . . . . . . . . . . Trap Hack Attempts . | . . . . . . . . . . . . . . . . . . . . . . . . . Triggered . | . . . . . . . . . . . . . . . . . . . . . . . . . Disarmed . | . . . . . . . . . . . . . . . . . . . . . . . . . Reprogrammed . | . . . . . . . . . . . . . . . . . . . . . . . . . Reused . | . . . . . . . . . . . . . . . . . . . . . . . . . Traps Extracted . | . . . . . . . . . . . . . . . . . . . . . . . . . Installed . | . . . . . . . . . . . . . . . . . . . . . . . . . Triggered 2 | . . . . . . . . . . . . . . . . . . 2 . . . . . . Machines | -11 -10 -10 -9 -9 -9 -8 -8 -8 -8 -7 -7 -7 -7 -6 -6 -6 -6 -5 -5 -4 -3 -2 -1 -1 ---------- Run | Yrd Mat Min Mat Min Exi Min Mat Gar Mat Fac Low Low Zio Pro Fac Low Dat Pro Fac Fac Res Res Acc Com Machines Disabled 8 | . . . . . . 1 1 . 2 . . . . . . . . . . . . . 4 . Max in Single Turn 2 | . . . . . . 1 1 . . . . . . . . . . . . . . . 2 . Garrison Access 4 | . . . . . . . . . . . . . . . 2 . . . . . 1 . 1 . Energy Cycler 1 | . . . . . . . . . . . . . . . . . . . . . . . 1 . Machines Repaired . | . . . . . . . . . . . . . . . . . . . . . . . . . Machines Dismantled . | . . . . . . . . . . . . . . . . . . . . . . . . . Machines Sabotaged . | . . . . . . . . . . . . . . . . . . . . . . . . . Overloaded Fab Kills . | . . . . . . . . . . . . . . . . . . . . . . . . . Hacking | -11 -10 -10 -9 -9 -9 -8 -8 -8 -8 -7 -7 -7 -7 -6 -6 -6 -6 -5 -5 -4 -3 -2 -1 -1 --------- Run | Yrd Mat Min Mat Min Exi Min Mat Gar Mat Fac Low Low Zio Pro Fac Low Dat Pro Fac Fac Res Res Acc Com Machines Accessed 61 | . 5 . 4 . 1 1 4 4 3 1 . . . . 9 . 4 . 1 1 7 4 8 4 Terminals 38 | . 5 . 2 . . 1 2 4 3 . . . . . 5 . . . . 1 2 3 6 4 Fabricators 3 | . . . . . . . . . . . . . . . . . . . . . 2 1 . . Repair Stations 3 | . . . 1 . . . . . . . . . . . . . . . 1 . 1 . . . Recycling Units 4 | . . . 1 . . . 1 . . . . . . . 1 . . . . . 1 . . . Scanalyzers 2 | . . . . . . . . . . 1 . . . . 1 . . . . . . . . . Garrison Access 6 | . . . . . . . 1 . . . . . . . 2 . . . . . 1 . 2 . Total Hacks 189 | . 16 . 10 . 1 7 10 10 9 2 . . . . 32 . 30 . 9 2 17 10 13 11 Successful 89 | . 6 . 5 . 1 4 3 1 3 . . . . . 15 . 30 . 3 1 7 5 3 2 Failed 99 | . 10 . 5 . . 2 7 9 6 2 . . . . 17 . . . 6 1 10 5 10 9 Catastrophic 22 | . . . 1 . . . 1 2 2 1 . . . . 2 . . . 1 1 2 3 5 1 Database Lockouts 1 | . . . . . . 1 . . . . . . . . . . . . . . . . . . Manual 66 | . 12 . 3 . 1 6 2 6 8 . . . 1 . 15 . . . . . 2 5 3 2 Terminals 111 | . 16 . 4 . . 7 7 10 9 . . . . . 21 . . . . 2 5 9 10 11 Fabricators 5 | . . . . . . . . . . . . . . . . . . . . . 4 1 . . Repair Stations 14 | . . . 2 . . . . . . . . . . . . . . . 9 . 3 . . . Recycling Units 10 | . . . 4 . . . 2 . . . . . . . 2 . . . . . 2 . . . Scanalyzers 5 | . . . . . . . . . . 2 . . . . 3 . . . . . . . . . Garrison Access 13 | . . . . . . . 1 . . . . . . . 6 . . . . . 3 . 3 . Terminal Hacks 58 | . 2 . 1 . 1 4 2 1 2 . . . . . 5 . 30 . . 1 2 3 2 2 Record 17 | . 1 . . . . 4 . . 1 . . . . . . . 11 . . . . . . . Part Schematic 12 | . . . . . . . . . . . . . . . 1 . 11 . . . . . . . Robot Schematic 5 | . . . . . . . . . . . . . . . . . 5 . . . . . . . Prototype ID Bank 7 | . . . . . . . . . 1 . . . . . 1 . 3 . . . 1 1 . . Open Door 1 | . . . . . . . . 1 . . . . . . . . . . . . . . . . Open DSF 1 | . . . . . . . . . . . . . . . 1 . . . . . . . . . Level Access Points 2 | . . . . . . . . . . . . . . . . . . . . 1 . 1 . . Emergency Access Points 2 | . . . . . . . . . . . . . . . 1 . . . . . . . . 1 Terminal Index 2 | . . . . . . . . . . . . . . . 1 . . . . . . . 1 . Unreport Threat 2 | . . . . . . . 1 . . . . . . . . . . . . . . . 1 . Locate Traps 2 | . 1 . . . . . . . . . . . . . . . . . . . . 1 . . Zone Layout 3 | . . . 1 . . . 1 . . . . . . . . . . . . . 1 . . . Derelict Proto ID Bank 1 | . . . . . 1 . . . . . . . . . . . . . . . . . . . Disengage Seal 1 | . . . . . . . . . . . . . . . . . . . . . . . . 1 Fabricator Hacks 1 | . . . . . . . . . . . . . . . . . . . . . 1 . . . Network Status 1 | . . . . . . . . . . . . . . . . . . . . . 1 . . . Repair Station Hacks 6 | . . . 2 . . . . . . . . . . . . . . . 3 . 1 . . . Scan Component 2 | . . . 1 . . . . . . . . . . . . . . . . . 1 . . . Repair 1 | . . . 1 . . . . . . . . . . . . . . . . . . . . . Refit 3 | . . . . . . . . . . . . . . . . . . . 3 . . . . . Recycling Unit Hacks 4 | . . . 1 . . . . . . . . . . . 2 . . . . . 1 . . . Report Inventory 1 | . . . . . . . . . . . . . . . 1 . . . . . . . . . Retrieve Components 3 | . . . 1 . . . . . . . . . . . 1 . . . . . 1 . . . Scanalyzer 3 | . . . . . . . . . . . . . . . 3 . . . . . . . . . Insert Component 2 | . . . . . . . . . . . . . . . 2 . . . . . . . . . Analyze 1 | . . . . . . . . . . . . . . . 1 . . . . . . . . . Garrison Access Hacks 5 | . . . . . . . 1 . . . . . . . 2 . . . . . 1 . 1 . Unlock Access 1 | . . . . . . . 1 . . . . . . . . . . . . . . . . . Seal Access 4 | . . . . . . . . . . . . . . . 2 . . . . . 1 . 1 . Unauthorized Hacks 12 | . 4 . 1 . . . . . 1 . . . . . 3 . . . . . 1 2 . . Terminals 11 | . 4 . . . . . . . 1 . . . . . 3 . . . . . 1 2 . . Track 1 | . 1 . . . . . . . . . . . . . . . . . . . . . . . Assimilate 1 | . 1 . . . . . . . . . . . . . . . . . . . . . . . Botnet 8 | . 1 . . . . . . . 1 . . . . . 3 . . . . . 1 2 . . Operators 1 | . 1 . . . . . . . . . . . . . . . . . . . . . . . Fabricators . | . . . . . . . . . . . . . . . . . . . . . . . . . Repair Stations . | . . . . . . . . . . . . . . . . . . . . . . . . . Recycling Units 1 | . . . 1 . . . . . . . . . . . . . . . . . . . . . Mask 1 | . . . 1 . . . . . . . . . . . . . . . . . . . . . Scanalyzers . | . . . . . . . . . . . . . . . . . . . . . . . . . Garrison Access . | . . . . . . . . . . . . . . . . . . . . . . . . . Data Cores Recovered 2 | . . . . . . . 1 . . . . . . . . . . . . . . . 1 . Used . | . . . . . . . . . . . . . . . . . . . . . . . . . Hacking Detections 46 | . 4 . 3 . . 1 3 4 2 1 . . . . 4 . . . 1 1 7 4 7 4 Full Trace Events 7 | . . . . . . 1 . 2 . . . . . . . . . . . 1 1 . . 2 Feedback Events . | . . . . . . . . . . . . . . . . . . . . . . . . . Feedback Blocked . | . . . . . . . . . . . . . . . . . . . . . . . . . Robot Schematics Acquired 7 | . . . . . . . . . . . . . 2 . . . 5 . . . . . . . Robots Built . | . . . . . . . . . . . . . . . . . . . . . . . . . Authchips . | . . . . . . . . . . . . . . . . . . . . . . . . . Time . | . . . . . . . . . . . . . . . . . . . . . . . . . Total Robot Build Rating . | . . . . . . . . . . . . . . . . . . . . . . . . . Part Schematics Acquired 27 | . . . . . . . . . . . . . 15 . 1 . 11 . . . . . . . Parts Built . | . . . . . . . . . . . . . . . . . . . . . . . . . Authchips . | . . . . . . . . . . . . . . . . . . . . . . . . . Time . | . . . . . . . . . . . . . . . . . . . . . . . . . Total Part Build Rating . | . . . . . . . . . . . . . . . . . . . . . . . . . Parts Repaired 1 | . . . 1 . . . . . . . . . . . . . . . . . . . . . Time 32 | . . . 32 . . . . . . . . . . . . . . . . . . . . . Parts Recycled . | . . . . . . . . . . . . . . . . . . . . . . . . . Recycled Matter . | . . . . . . . . . . . . . . . . . . . . . . . . . Retrieved Matter . | . . . . . . . . . . . . . . . . . . . . . . . . . Retrieved Components 12 | . . . 9 . . . . . . . . . . . 2 . . . . . 1 . . . Parts Scanalyzed 1 | . . . . . . . . . . . . . . . 1 . . . . . . . . . Part Schematics Acquired 1 | . . . . . . . . . . . . . . . 1 . . . . . . . . . Parts Damaged . | . . . . . . . . . . . . . . . . . . . . . . . . . Bothacking | -11 -10 -10 -9 -9 -9 -8 -8 -8 -8 -7 -7 -7 -7 -6 -6 -6 -6 -5 -5 -4 -3 -2 -1 -1 ------------ Run | Yrd Mat Min Mat Min Exi Min Mat Gar Mat Fac Low Low Zio Pro Fac Low Dat Pro Fac Fac Res Res Acc Com Used RIF Installer . | . . . . . . . . . . . . . . . . . . . . . . . . . Robots Hacked . | . . . . . . . . . . . . . . . . . . . . . . . . . Non-combat . | . . . . . . . . . . . . . . . . . . . . . . . . . Combat . | . . . . . . . . . . . . . . . . . . . . . . . . . Robot Hacks Applied . | . . . . . . . . . . . . . . . . . . . . . . . . . Relay Couplers Released 4 | . . . . . . . . 4 . . . . . . . . . . . . . . . . Programmers 4 | . . . . . . . . 4 . . . . . . . . . . . . . . . . Fabnet Peak Effective % . | . . . . . . . . . . . . . . . . . . . . . . . . . Robots Rewired . | . . . . . . . . . . . . . . . . . . . . . . . . . Allies Hacked . | . . . . . . . . . . . . . . . . . . . . . . . . . Hacks Repelled . | . . . . . . . . . . . . . . . . . . . . . . . . . Allies | -11 -10 -10 -9 -9 -9 -8 -8 -8 -8 -7 -7 -7 -7 -6 -6 -6 -6 -5 -5 -4 -3 -2 -1 -1 -------- Run | Yrd Mat Min Mat Min Exi Min Mat Gar Mat Fac Low Low Zio Pro Fac Low Dat Pro Fac Fac Res Res Acc Com Total Allies 3 | . . . . 1 . . . 1 . . . . . . . . . 1 . . . . . . Largest Group 1 | . . . . 1 1 . . 1 1 1 1 . . . . . . 1 . . . . . . Highest-Rated Group 96 | . . . . 31 31 . . 31 31 31 31 . . . . . . 96 . . . . . . Highest-Rated Ally 96 | . . . . 31 31 . . 31 31 31 31 . . . . . . 96 . . . . . . Total Orders 2 | . . . . . . . . . . . . . . . . . . . 2 . . . . . EXPLORE 2 | . . . . . . . . . . . . . . . . . . . 2 . . . . . Ally Attacks 48 | . . . . . . . . . 16 13 4 . . . . . . 15 . . . . . . Total Damage 1056 | . . . . . . . . . 207 232 62 . . . . . . 555 . . . . . . Kills 14 | . . . . . . . . . 4 6 . . . . . . . 4 . . . . . . Allies Corrupted . | . . . . . . . . . . . . . . . . . . . . . . . . . Allies Melted . | . . . . . . . . . . . . . . . . . . . . . . . . . Intel | -11 -10 -10 -9 -9 -9 -8 -8 -8 -8 -7 -7 -7 -7 -6 -6 -6 -6 -5 -5 -4 -3 -2 -1 -1 ------- Run | Yrd Mat Min Mat Min Exi Min Mat Gar Mat Fac Low Low Zio Pro Fac Low Dat Pro Fac Fac Res Res Acc Com Robot Analysis Total . | . . . . . . . . . . . . . . . . . . . . . . . . . Derelict Logs Recovered 9 | . . 2 . 1 . . . . . . 1 2 2 . . . . 1 . . . . . . Drone Launches 2 | . . . . . . . . . . . . . . . . . . . 2 . . . . . Drone Recoveries . | . . . . . . . . . . . . . . . . . . . . . . . . . Exploration | -11 -10 -10 -9 -9 -9 -8 -8 -8 -8 -7 -7 -7 -7 -6 -6 -6 -6 -5 -5 -4 -3 -2 -1 -1 ------------- Run | Yrd Mat Min Mat Min Exi Min Mat Gar Mat Fac Low Low Zio Pro Fac Low Dat Pro Fac Fac Res Res Acc Com Turns Passed 14951 | 123 666 356 494 202 585 1561 378 1754 467 368 658 782 1600 610 1171 307 151 580 283 136 487 248 603 381 Spaces Moved 10369 | 108 431 219 248 125 282 536 180 461 265 222 403 458 990 342 605 168 92 313 296 117 976 435 1300 797 Core 184 | 43 . . . . . . . . . . . . . . . . . 65 10 . . . . 66 Treads 5299 | . . . 78 125 282 536 180 461 265 222 403 458 990 342 605 168 92 87 . . . . . 5 Legs 1046 | 65 431 219 170 . . . . . . . . . . . . . . 161 . . . . . . Wheels . | . . . . . . . . . . . . . . . . . . . . . . . . . Hover 472 | . . . . . . . . . . . . . . . . . . . 286 117 69 . . . Flight 3368 | . . . . . . . . . . . . . . . . . . . . . 907 435 1300 726 Fastest Speed 34 | 50 120 120 120 160 160 240 160 160 160 160 160 160 160 160 160 160 160 50 50 58 34 36 36 36 Average Speed 117 | 92 120 120 140 160 204 240 198 160 160 160 160 160 160 160 160 160 160 159 85 68 37 36 36 38 Slowest Speed 320 | 120 120 190 190 160 320 240 240 160 160 160 160 160 160 160 160 160 160 240 160 72 125 36 36 145 Overloaded Moves . | . . . . . . . . . . . . . . . . . . . . . . . . . Propulsion Burnouts . | . . . . . . . . . . . . . . . . . . . . . . . . . Robots Hopped 59 | . . . . . . . . . . . . . . . . . . . . . 26 4 15 14 Cave-ins Triggered . | . . . . . . . . . . . . . . . . . . . . . . . . . Exploration Rate (%) 41 | 8 69 61 34 34 60 75 18 72 25 4 57 71 86 63 17 30 70 59 9 5 27 15 35 30 Regions Visited 24 Branch Regions 12 Pre-discovered Areas 4 | . . 1 . . . . . . . . 1 1 . . . . 1 . . . . . . . Known Exits Taken 5 | . . . . . . . 1 . . . . . . . 1 . . 1 . 1 . 1 . . Unknown Exits Taken 18 | 1 1 1 1 1 1 1 . . 1 1 1 1 1 1 . 1 1 . 1 . 1 . 1 . Scrap Searched 18 | . . 1 . . . 1 . . . . 3 5 3 1 . . . 4 . . . . . . Spaces Dug 68 | . . 11 . . . . . . . . . . . 15 11 14 . 17 . . . . . . Terrain Destroyed 239 | . . 54 . . . 4 . 10 . . . . . 15 11 34 . 96 . . . . 15 . Melee . | . . . . . . . . . . . . . . . . . . . . . . . . . Projectile 16 | . . . . . . 4 . 10 . . . . . . . . . 2 . . . . . . AOE 223 | . . 54 . . . . . . . . . . . 15 11 34 . 94 . . . . 15 . Terrain Rammed . | . . . . . . . . . . . . . . . . . . . . . . . . . Walls Destroyed . | . . . . . . . . . . . . . . . . . . . . . . . . . Machines Disabled . | . . . . . . . . . . . . . . . . . . . . . . . . . Actions | -11 -10 -10 -9 -9 -9 -8 -8 -8 -8 -7 -7 -7 -7 -6 -6 -6 -6 -5 -5 -4 -3 -2 -1 -1 --------- Run | Yrd Mat Min Mat Min Exi Min Mat Gar Mat Fac Low Low Zio Pro Fac Low Dat Pro Fac Fac Res Res Acc Com Total 12743 | 127 528 288 359 126 293 811 203 1465 305 233 411 490 1010 375 794 185 97 358 326 167 1041 519 1371 861 Wait 1893 | 12 34 43 61 . . 275 1 992 32 . . 18 2 7 172 . . 5 11 45 33 59 43 48 Move 10229 | 107 430 218 247 124 281 535 179 458 264 221 402 457 989 341 604 167 91 312 295 116 923 427 1271 770 Hop 55 | . . . . . . . . . . . . . . . . . . . . . 26 3 13 13 Pick Up 63 | 1 8 1 5 . 2 . 8 1 2 3 2 1 4 . 3 . . . 1 . 3 4 5 9 Fast Attach 78 | 5 5 3 6 . 3 1 3 2 1 3 . 1 3 2 1 . . 2 8 1 13 8 6 1 Attach 51 | . 2 . 3 . . . . 2 1 . 1 . 2 4 2 3 3 4 2 . 6 3 4 9 Detach 36 | . 2 . 2 . . . . . 2 . . . 4 1 . . 3 3 . 1 5 9 3 1 Swap 26 | 1 3 2 4 2 1 . 4 . . . . . . . 5 . . 1 2 . . . 1 . Drop 87 | . 10 2 11 . 6 . 8 2 1 4 2 1 6 . . . . 1 7 . 8 4 5 9 Fire 215 | 1 34 19 20 . . . . 8 2 2 4 12 . 20 7 15 . 30 . 4 14 2 20 1 Melee . | . . . . . . . . . . . . . . . . . . . . . . . . . Ram . | . . . . . . . . . . . . . . . . . . . . . . . . . Kick . | . . . . . . . . . . . . . . . . . . . . . . . . . Crush . | . . . . . . . . . . . . . . . . . . . . . . . . . Escape Stasis 10 | . . . . . . . . . . . . . . . . . . . . . 10 . . . Rewire . | . . . . . . . . . . . . . . . . . . . . . . . . . Trap . | . . . . . . . . . . . . . . . . . . . . . . . . . Miscellaneous . | . . . . . . . . . . . . . . . . . . . . . . . . . Route ------- -11/Scrapyard -10/Materials (discovered 2 exits: *Mat / [*Min]) -10/Mines -9/Materials (discovered 2 exits: *Mat / [*Min]) -9/Mines (discovered 2 exits: *Mat / *Exi) -9/Exiles -8/Mines -8/Materials -8/Garrison (discovered 3 exits: *Mat x3) -8/Materials -7/Factory -7/Lower Caves -7/Lower Caves (discovered 2 exits: *Fac / *Zio) -7/Zion -6/Proximity Caves -6/Factory (discovered 4 exits: *Fac x2 / *Low x2) -6/Lower Caves -6/Data Miner -5/Proximity Caves -5/Factory -4/Factory (discovered 4 exits: *Res x4) -3/Research -2/Research (discovered 3 exits: *Acc x3) -1/Access -1/Command (discovered 1 exit: [*Sur]) History --------- Turn | Location | Event 2 | -11/Scrapyard | Met Revision 17 90 | -11/Scrapyard | Discovered new exit (range 8) 124 | -11/Scrapyard | Entered Materials 317 | -10/Materials | Build established: Mutant 515 | -10/Materials | Discovered new exit (range 11) 784 | -10/Materials | Discovered new exit (range 5) 790 | -10/Materials | Entered Mines 826 | -10/Mines | Met a Derelict bent on vengeance 915 | -10/Mines | Found a damaged Exp. Sensor Array with a note attached 917 | -10/Mines | Found Prototype Device 917 | -10/Mines | Identified Exp. Sensor Array 959 | -10/Mines | Learned 2 Materials zone layouts 1031 | -10/Mines | Learned location of Zion (-7) 1127 | -10/Mines | Discovered new exit (range 6) 1146 | -10/Mines | Entered Materials 1146 | -9/Materials | Evolved 2 slots: Utility x1, Weapon x1 1352 | -9/Materials | Repaired Autogun 1492 | -9/Materials | Discovered new exit (range 12) 1628 | -9/Materials | Discovered new exit (range 9) 1640 | -9/Materials | Entered Mines 1643 | -9/Mines | Received a Mining Laser from a helpful Derelict 1654 | -9/Mines | Build established: Scavenger-Tank 1715 | -9/Mines | Assembled infested the area 1743 | -9/Mines | Found a hidden stash of uninstalled traps 1787 | -9/Mines | Learned Materials emergency access door positions 1794 | -9/Mines | Discovered new exit (range 11) 1835 | -9/Mines | Discovered new exit (range 5) 1842 | -9/Mines | Entered Exiles 1842 | -9/Exiles | Accompanied by 1 ally 1881 | -9/Exiles | Met 8R-AWN 1910 | -9/Exiles | Met EX-HEX 1958 | -9/Exiles | Met EX-BIN 1975 | -9/Exiles | Aligned with FarCom system 1977 | -9/Exiles | Given EX-Vault access code 2018 | -9/Exiles | Opened EX-Vault 2062 | -9/Exiles | Found AWS/Autocannon 2120 | -9/Exiles | Warned to stay clear of 0b10 Research branches 2192 | -9/Exiles | Met EX-DEC 2408 | -9/Exiles | Discovered new exit (range 10) 2427 | -9/Exiles | Left Exiles lab with AWS/Autocannon 2427 | -9/Exiles | Entered Mines 2743 | -8/Mines | Build established: Scavenger-Skirmisher 3131 | -8/Mines | Central database locked down 3962 | -8/Mines | Discovered new exit (range 8) 3988 | -8/Mines | Entered Materials 3988 | -8/Materials | Evolved 2 slots: Propulsion x2 4363 | -8/Materials | Identified exit to Garrison 4366 | -8/Materials | Entered Garrison 4567 | -8/Garrison | Build established: Skirmisher 4615 | -8/Garrison | Discovered new exit (range 9) 5586 | -8/Garrison | Attempted to access garrison exit controls, blocked by remote lockdown 5638 | -8/Garrison | Triggered checkpoint 5712 | -8/Garrison | Destroyed 10 combat bots 5714 | -8/Garrison | Discovered new exit (range 10) 5733 | -8/Garrison | Attempted to access garrison exit controls, blocked by remote lockdown 5762 | -8/Garrison | Triggered checkpoint 5968 | -8/Garrison | Triggered checkpoint 6072 | -8/Garrison | Discovered new exit (range 10) 6109 | -8/Garrison | Rescued a captive Derelict 6120 | -8/Garrison | Entered Materials 6120 | -8/Materials | Accompanied by 1 ally 6479 | -8/Materials | Discovered new exit (range 10) 6587 | -8/Materials | Entered Factory 6587 | -7/Factory | Accompanied by 1 ally 6587 | -7/Factory | Evolved 2 slots: Utility x1, Weapon x1 6781 | -7/Factory | Discovered new exit (range 16) 6955 | -7/Factory | Entered Lower Caves 6955 | -7/Lower Caves | Accompanied by 1 ally 6961 | -7/Lower Caves | Met a Warlord Commander 6962 | -7/Lower Caves | Learned location of Warlord (-5) 6963 | -7/Lower Caves | Warlord Commander delivered Encrypted Comm Array 6964 | -7/Lower Caves | Found Encrypted Comm Array 7268 | -7/Lower Caves | Build established: Gunner 7409 | -7/Lower Caves | Spotted B-75 Beast 7454 | -7/Lower Caves | Learned location of 1 exit from Factory 7605 | -7/Lower Caves | Discovered new exit (range 5) 7613 | -7/Lower Caves | Entered another Lower Caves area 7652 | -7/Lower Caves | Attracted the attention of an 0b10 checkpoint 7668 | -7/Lower Caves | Discovered new exit (range 9) 7762 | -7/Lower Caves | Learned location of Extension (-5) 8087 | -7/Lower Caves | Learned 4 Factory zone layouts 8337 | -7/Lower Caves | Discovered new exit (range 10) 8395 | -7/Lower Caves | Entered Zion 8483 | -7/Zion | Acquired unknown access codes intercepted by a Zionite 8541 | -7/Zion | Received a visual enhancement algorithm 8858 | -7/Zion | Given the Hacking Drone Bay 9026 | -7/Zion | Rebuked by Imprinter 9741 | -7/Zion | Found Prototype Processor 9741 | -7/Zion | Identified Exp. Targeting Computer 9744 | -7/Zion | Found Prototype Processor 9744 | -7/Zion | Identified Exp. Target Analyzer 9748 | -7/Zion | Found Prototype Hackware 9971 | -7/Zion | Discovered new exit (range 15) 9995 | -7/Zion | Entered Proximity Caves 10303 | -6/Proximity Caves | Lost 3 parts (1n2w) 10387 | -6/Proximity Caves | Lost 3 parts (2n1u) 10581 | -6/Proximity Caves | Discovered new exit (range 11) 10605 | -6/Proximity Caves | Entered Factory 10605 | -6/Factory | Evolved 2 slots: Utility x2 10606 | -6/Factory | Identified exit to Lower Caves 10606 | -6/Factory | Identified Exp. System Shield 10607 | -6/Factory | Identified exit to Factory 10665 | -6/Factory | Build established: Scavenger-Gunner 11674 | -6/Factory | Discovered exit to Factory (range 8) 11776 | -6/Factory | Entered Lower Caves 11864 | -6/Lower Caves | Lost 4 parts (1p1n1u1w) 11893 | -6/Lower Caves | Encountered a Warlord checkpoint 12079 | -6/Lower Caves | A Derelict revealed a hidden shortcut to meet someone special 12083 | -6/Lower Caves | Entered Data Miner 12085 | -6/Data Miner | Discovered new exit (range 6) 12115 | -6/Data Miner | Met Data Miner 12157 | -6/Data Miner | Learned location of Section 7 (-3) 12157 | -6/Data Miner | Acquired the access code to Warlord's prototype stash 12183 | -6/Data Miner | Received God Mode back door access code from Data Miner 12234 | -6/Data Miner | Entered Proximity Caves 12318 | -5/Proximity Caves | Attracted the attention of an 0b10 checkpoint 12437 | -5/Proximity Caves | Escorted by Enhanced Grunt 12469 | -5/Proximity Caves | Lost 3 parts (2n1w) 12734 | -5/Proximity Caves | Build established: Mutant 12745 | -5/Proximity Caves | Attracted the attention of an 0b10 outpost 12780 | -5/Proximity Caves | Core integrity fell below 50% 12784 | -5/Proximity Caves | Core integrity fell below 20% 12811 | -5/Proximity Caves | Lost 3 parts (1n2w) 12814 | -5/Proximity Caves | Entered Factory 12814 | -5/Factory | Evolved 2 slots: Power x1, Utility x1 13038 | -5/Factory | Discovered new exit (range 15) 13097 | -5/Factory | Entered another Factory area 13097 | -4/Factory | Evolved 2 slots: Propulsion x2 13118 | -4/Factory | Identified exit to Research 13233 | -4/Factory | Entered Research 13233 | -3/Research | Evolved 2 slots: Propulsion x1, Utility x1 13260 | -3/Research | Lost 4 parts (1p1n1u1w) 13299 | -3/Research | Found Gamma Bomb Array 13312 | -3/Research | Build established: Gunner 13491 | -3/Research | Lost 4 parts (3u1w) 13536 | -3/Research | Spotted B-86 Titan 13704 | -3/Research | Discovered new exit (range 15) 13720 | -3/Research | Entered another Research area 13720 | -2/Research | Evolved 2 slots: Propulsion x1, Utility x1 13799 | -2/Research | Spotted B-90 Cyclops 13962 | -2/Research | Identified exit to Access 13968 | -2/Research | Entered Access 13968 | -1/Access | Evolved 2 slots: Utility x2 14113 | -1/Access | Found Prototype Device 14113 | -1/Access | Identified Exp. ECM Suite 14122 | -1/Access | Spotted B-99 Colossus 14218 | -1/Access | Search patrols dispatched 14237 | -1/Access | Energy Cycler disabled 14394 | -1/Access | Found Prototype Hackware 14394 | -1/Access | Identified Exp. Hacking Suite 14568 | -1/Access | Discovered new exit (range 9) 14571 | -1/Access | Entered Command 14587 | -1/Command | Lost 6 parts (1p2u3w) 14890 | -1/Command | Disengaged cave seal 14902 | -1/Command | Core integrity fell below 50% 14930 | -1/Command | Lost 6 parts (1p2n3w) 14943 | -1/Command | Spotted Alpha 7 14943 | -1/Command | Spotted Alpha 7 14943 | -1/Command | Spotted Striker 14943 | -1/Command | Spotted Striker 14943 | -1/Command | Spotted Executioner 14943 | -1/Command | Spotted Executioner 14943 | -1/Command | Spotted Executioner 14943 | -1/Command | Spotted Executioner 14944 | -1/Command | Spotted B-99 Colossus 14946 | -1/Command | Spotted B-99 Colossus 14950 | -1/Command | Core integrity fell below 20% 14951 | -1/Command | Discovered new exit (range 8) 14952 | -1/Command | Destroyed by Striker with Compact Linear Accelerator Last Messages --------------- 14949_ Adv. Medium Treads destroyed. 14949_ Slug penetrates Alpha 7. 14949_ Slug penetrates Wall. 14949_ Exp. Hacking Suite destroyed. 14949_ Exp. Target Analyzer destroyed. 14950_ Penetrated by Slug. 14950_ Slug penetrates Wall. 14950_ Triggered Stasis Trap. 14950_ A bubble of rippling energy engulfs the area. 14950_ Field strength at 94. 14950_ Knocked back. 14951_ Penetrated by Slug. 14951_ Slug penetrates Access Shell. 14951_ Access Shell breached. 14951_ Slug penetrates Wall. 14951_ The Access Shell folds into the floor. 14951_ EXIT=FOUND 14951_ Penetrated by Slug. 14951_ Imp. Targeting Computer destroyed. 14951_ Slug penetrates B-99 Colossus. Map ----- +----------------------------------------------------+ | %=#????# #?????????????# ###### | | = #????# #?????????????# #????? | | ###### #?????????????# #????? | | + #?????????????# ######## #????? | | # #?????????????# #??????# #????? | | + #?????????????# #??????# #????? | | # #?????????????######??????# #????? | | # ] #?????????????????######### #????? | | ######## #?????????????????# + #????? | | ## #?????????????????# # #????? | | ## #?????????????????# # #????? | | ## #?????????????????# + #????? | | ## #?????????????????# #### #????? | | #? #?????????????????# #??# #????? | | #?#########?????????????????# #??# #????? | | #???????????????????????????# #??# #????? | | #???????????????????????????######??# #????? | | #######???????????????????????????????????# ###### | | ???????????????????????##############?????# # """ | | ???????????????????????# #?????# # """ | | ???????????????######### #?????# + | | ????????????####7# # # #BB #?????### ] | | #############; E BB #???????# = | | = s %+ % E % ^ ##??????# | | % ; %K ^ "< ;#??????# | | * ; ^ @ "" ^ #???????####+# | | ; K ^ BB % #??????????# # | | ### %7 E^E BB #??????????# # | | """" #?### # # # # #??????????# # | | """" #???######### #??????????# # | | "" #???????????# #??????????# # | | #???????????##############??????????# # | | #????????????????????????????????####+# | | #????????????????????????????????# | | "" #????????????????????????????????#]]] | | """ #????????????????????????????????#]]] | | T" #????????????????????????????????#]] | | """ #????????????????????????????????# | | "" ??????????????##############????# | | ???? ???????????????# ! #????# | | ??????????????????????????# #######/### | | ??????????????????????????# = * / | | ??????????????????????????# ########### | | ??????????????????????????# * #?????????? | | ??????????????????????????###########+##?????????? | | ????????????????????????????######### #??????????? | | ????????????????????????????# ] ! # #??????????? | | ????????????????????????????# + #??????????? | | ?????""?????????????????????# # #??????????? | | ?????"""???????????????????########## ##?????????? | +----------------------------------------------------+ Best States ------------- Heat Dissipation 121 Energy Generation 39 Energy Capacity 700 Matter Stores 300 Matter Capacity 300 Sight Range 16 Robot Scan Range 20 Terrain Scan Density 10 ECM Strength 1 Cloak Strength 3 Base Temperature (-) 200 Armor Coverage 375 Resistance: TH 20 Power Shielding 33 Weapon Cycling 15 Evasion (%) 74 Targeting Accuracy 8 Target Analysis 10 Recoil Reduction 5 Matter Filtering 30 Energy Filtering 30 Particle Charging 25 Kinecelleration 30 Offensive Hacking 16 Defensive Hacking 16 Item Schematics ----------------- Imp. Carbon-fiber Leg | -7/Zion | Archive Hpw. Shock Rifle | -7/Zion | Archive Hyp. Gauss Rifle | -7/Zion | Archive Weapon Cycler | -7/Zion | Archive Beamcaster | -7/Zion | Archive Gauss Cannon | -7/Zion | Archive Hyp. Coil Gun | -7/Zion | Archive Hvy. Flak Cannon | -7/Zion | Archive Energy Filter | -7/Zion | Archive Armor Integrity Analyzer | -7/Zion | Archive Adv. Signal Interpreter | -7/Zion | Archive Xenon Bombardment Thruster | -7/Zion | Archive Coil Gun | -7/Zion | Archive Coolant Injector | -7/Zion | Archive Imp. Transmission Jammer | -7/Zion | Archive Hvy. Missile Launcher | -6/Factory | Scanalyzed Combat Drone Bay | -6/Data Miner | Free Lgt. Regenerative Plating | -6/Data Miner | Free Enh. Flexi-carbon Leg | -6/Data Miner | Free Prc. Energy Filter | -6/Data Miner | Free Thunder Hammer | -6/Data Miner | Free Adv. Medium Treads | -6/Data Miner | Free Imp. Force Field | -6/Data Miner | Free Micro-nuke Launcher | -6/Data Miner | Free Adv. Datajack | -6/Data Miner | Free Biometal Medium Treads | -6/Data Miner | Free Q-thruster | -6/Data Miner | Free Robot Schematics ------------------ A-02 Transporter | -7/Zion | Archive S-27 Virus | -7/Zion | Archive R-10 Processor | -6/Data Miner | Free B-60 Warrior | -6/Data Miner | Free L-41 Fighter | -6/Data Miner | Free G-67 Veteran | -6/Data Miner | Free X-77 Beamer | -6/Data Miner | Free Fabricated ------------ Nothing Alien Tech Used ----------------- None Achievements -------------- None Challenges ------------ None Game ------ Seed LightpackNovaSaw Manual? 0 Play Time 02:30:52 Cumulative 2.4 hours Start 2024.06.20 @ 08:49:31 End 2024.06.21 @ 07:54:29 Sessions 10 Manual Loads 0 Difficulty Rogue Special Mode None Game No. 1 Rogue 1 Adventurer 0 Explorer 0 Win Type - Total 0 Types 0/0/0/0/0/0/0/0/0 Lore% 5 Gallery% 7 Achievement% 56 Wizard Run 0 Options --------- Layout 0 ASCII 1 Keyboard 1 Movement Arrows Keybinds 0 Fullscreen 1 Font 20/Terminus Map View 82x60 Zoom Use 0% Tactical HUD 1 Map Filters NONE Filters NONE Steam 1 RUN: a898d4d7-a5ef-47a2-ae6d-7cf4a8ae8bca